Cogmind - Beta 13 @@@ ROGUE MODE // 2024.04.20 @ 23:37:44 Player: Tenderz Result: Destroyed by as-41333 with Assembled Rifle Performance ------------- Evolutions (0) 0 Regions Visited (2) 400 Robots Destroyed (6) 30 Value Destroyed (39) 39 Prototype IDs (0) 0 Alien Tech Used (0) 0 Bonus (0) 0 TOTAL SCORE: 469 Bonus ------- None Cogmind --------- Core Integrity 0/250 Matter 113/400 Energy 122/125 System Corruption 15% Temperature Warm (120) Movement Walking (190) Ox1 Location -10/Mines Parts ------- > --- POWER (1) -------- Light Ion Engine > --- PROPULSION (2) --- Aluminum Leg Aluminum Leg > --- UTILITY (2) ------ Large Storage Unit Medium Matter Pod > --- WEAPON (2) ------- Beam Cannon Assault Rifle > --- INVENTORY (15) --- Light Ion Engine Light Ion Engine Aluminum Leg Aluminum Leg Beam Cannon Mining Laser Peak State ------------ > --- POWER ------------ Ion Engine > --- PROPULSION ------- Light Treads Light Treads > --- UTILITY ---------- Large Storage Unit Sensor Array > --- WEAPON ----------- Beam Cannon Rocket Launcher > --- INVENTORY -------- Light Ion Engine Light Ion Engine Light Ion Engine Aluminum Leg Aluminum Leg Aluminum Leg Aluminum Leg Medium Matter Pod Beam Cannon Beam Cannon Assault Rifle Grenade Launcher Mining Laser [Rating: 9] Favorites ----------- Power Light Ion Engine Engine Light Ion Engine Propulsion Light Treads Treads Light Treads Leg Aluminum Leg Wheel Compact Wheel Utility Small Storage Unit Device Sensor Array Storage Small Storage Unit Weapon Assault Rifle Energy Gun EM Pulse Gun Energy Cannon Beam Cannon Ballistic Gun Assault Rifle Launcher Grenade Launcher Build | -11 -10 -10 ------- Run | Yrd Mat Min Slots Evolved . | . . . Power . | . . . Propulsion . | . . . Utility . | . . . Weapon . | . . . Parts Attached 29 | 6 13 10 Power 3 | . 2 1 Engine 3 | . 2 1 Core . | . . . Reactor . | . . . Propulsion 9 | 2 5 2 Treads 4 | 2 2 . Leg 4 | . 2 2 Wheel 1 | . 1 . Hover . | . . . Flight . | . . . Utility 5 | 2 2 1 Device 2 | 1 1 . Storage 3 | 1 1 1 Processor . | . . . Hackware . | . . . Protection . | . . . Artifact . | . . . Weapon 12 | 2 4 6 Energy Gun 2 | 1 1 . Energy Cannon 4 | . 2 2 Ballistic Gun 2 | 1 . 1 Ballistic Cannon . | . . . Launcher 4 | . 1 3 Special Weapon . | . . . Impact Weapon . | . . . Slashing Weapon . | . . . Piercing Weapon . | . . . Special Melee Weapon . | . . . Unidentified Prototypes . | . . . Parts Lost 7 | . . 7 Power 1 | . . 1 Propulsion 2 | . . 2 Utility 1 | . . 1 Weapon 3 | . . 3 Highest Loss Streak 7 | . . 7 To Critical Strikes . | . . . Average Slot Usage (%) 96 | . 98 92 Engine 13 | . 12 14 Treads 10 | . 6 22 Leg 17 | . 21 4 Device 12 | . 14 9 Storage 14 | . 14 15 Energy Gun 4 | . 6 . Energy Cannon 10 | . 6 21 Ballistic Gun 8 | . 10 2 Launcher 3 | . 4 2 Naked Turns . | . . . Heaviest Build 33 | 10 32 33 Greatest Support 40 | 40 40 40 Greatest Overweight (x) 1 | . . 1 Average Overweight (x) . | . . . Largest Inventory Capacity 15 | 8 15 15 Average Capacity 9 | 7 9 15 Most Carried 13 | 8 12 13 Average Carried 7 | 3 8 12 Final Capacity 15 | 8 15 15 Final Carried 12 | 8 12 6 Class Distribution -------------------- 100% | Mutant Dominant Class ---------------- Mutant | -10/Materials Mutant | -10/Mines Resources | -11 -10 -10 ----------- Run | Yrd Mat Min Matter Collected 408 | 264 144 . Remotely . | . . . Salvage Created 227 | 110 71 46 Parts 7 | 7 . . Haulers Intercepted 1 | . 1 . Recyclers Shooed . | . . . Parts Field Recycled . | . . . Retrieved Matter . | . . . Parts Self-Destructed . | . . . Prevented . | . . . Kills | -11 -10 -10 ------- Run | Yrd Mat Min Combat Hostiles Destroyed 14 | . . 14 Guns 1 | . . 1 Cannons 1 | . . 1 AOE 12 | . . 12 Classes Destroyed 6 | 3 2 1 Worker 1 | 1 . . Tunneler 2 | 2 . . Hauler 1 | . 1 . Recycler 1 | 1 . . Operator 1 | . 1 . Assembled 14 | . . 14 Best Kill Streak 14 | 2 1 14 Combat Bots Only 14 | . . 14 Max Kills in Single Turn 7 | 1 1 7 Gunslinging . | . . . Exploded 7 | . . 7 Melee . | . . . Uniques/NPCs Destroyed . | . . . Combat | -11 -10 -10 -------- Run | Yrd Mat Min Hostile Shots Fired 80 | . . 80 Missed 20 | . . 20 Damage Taken 958 | . . 958 Core 257 | . . 257 Absorbed by Shields . | . . . Core Remaining (%) 100 | 100 . . Volleys Fired 26 | 9 4 13 Largest 2 | 2 2 2 Hottest 120 | 60 70 120 Shots Fired 46 | 18 7 21 Gun 29 | 18 6 5 Cannon 9 | . . 9 Launcher 8 | . 1 7 Special . | . . . Kinetic 17 | 9 3 5 Thermal 12 | . 3 9 Explosive 8 | . 1 7 Electromagnetic 9 | 9 . . Robot Hit Streak 6 | 6 5 4 Robot Miss Streak 3 | 1 1 3 Penetration Max . | . . . Secondary Targets . | . . . Shots Hit Robots 24 | 13 5 6 Core Hits 36 | 5 4 27 Critical Kills . | . . . Critical Parts Destroyed . | . . . Critical Strikes 2 | . 2 . Burn 2 | . 2 . Melee Attacks . | . . . Impact . | . . . Slashing . | . . . Piercing . | . . . Sneak Attacks . | . . . Combat Hostiles . | . . . Follow-up Attacks . | . . . Damage Inflicted 1108 | 234 66 808 Guns 286 | 177 66 43 Cannons 35 | . . 35 Explosions 787 | 57 . 730 Melee . | . . . Ramming . | . . . Kinetic 177 | 92 42 43 Thermal 116 | 57 24 35 Explosive 730 | . . 730 Electromagnetic 85 | 85 . . Impact . | . . . Slashing . | . . . Piercing . | . . . Highest Corruption 15 | . . 15 Average Corruption 9 | . . 9 Corruption Purged . | . . . Corruption Blocked . | . . . Effects 2 | . . 2 Matter Fused 1 | . . 1 Heat Flow Errors 1 | . . 1 Overload Shots . | . . . Overflow Damage 10 | . . 10 Projectiles . | . . . Explosions 10 | . . 10 Melee . | . . . Knockbacks . | . . . Impact . | . . . Kinetic . | . . . Secondary . | . . . Self-Inflicted Damage 91 | . . 91 Shots 3 | . . 3 Rammed . | . . . Targets Rammed . | . . . Kicked . | . . . Crushed . | . . . Highest Temperature 326 | . 18 326 Average Temperature 162 | . 9 192 Received Heat Transfer . | . . . Siege Activations . | . . . Robots Corrupted . | . . . Combat Hostiles . | . . . Parts Fried . | . . . Impact Corruptions . | . . . Robots Melted . | . . . Combat Hostiles . | . . . Parts Melted 2 | . 2 . Heat Transferred 346 | 50 222 74 Parts Sabotaged . | . . . Parts Stolen . | . . . Parts Stripped . | . . . Power Chain Reactions 1 | 1 . . Alert | -11 -10 -10 ------- Run | Yrd Mat Min Peak Influence 89 | 20 89 45 Initial 34 | . 13 34 Average 32 | 7 49 28 Maximum Alert Level . | . . . Low Security (%) 100 | 100 100 100 Level 1 . | . . . Level 2 . | . . . Level 3 . | . . . Level 4 . | . . . Level 5 . | . . . High Security . | . . . Max Security . | . . . Squads Dispatched 1 | . 1 . Investigation 1 | . 1 . Extermination . | . . . Reinforcement . | . . . Assault . | . . . Garrison . | . . . Intercept . | . . . Searches Triggered . | . . . Construction Impeded . | . . . Haulers Reinforced . | . . . Active Scanning Responses . | . . . Cargo Convoy Interrupts . | . . . Stealth | -11 -10 -10 --------- Run | Yrd Mat Min Distress Signals . | . . . Communications Jammed . | . . . Distress Signals . | . . . Times Spotted 19 | . 2 17 Peak Tracking Total 17 | . 1 17 Tactical Retreats . | . . . Traps | -11 -10 -10 ------- Run | Yrd Mat Min Traps Triggered . | . . . Indirectly . | . . . Trap Hack Attempts . | . . . Triggered . | . . . Disarmed . | . . . Reprogrammed . | . . . Reused . | . . . Traps Extracted . | . . . Installed . | . . . Triggered . | . . . Machines | -11 -10 -10 ---------- Run | Yrd Mat Min Machines Disabled . | . . . Max in Single Turn . | . . . Machines Repaired . | . . . Machines Dismantled . | . . . Machines Sabotaged . | . . . Overloaded Fab Kills . | . . . Hacking | -11 -10 -10 --------- Run | Yrd Mat Min Machines Accessed 2 | . 2 . Terminals 2 | . 2 . Fabricators . | . . . Repair Stations . | . . . Recycling Units . | . . . Scanalyzers . | . . . Garrison Access . | . . . Total Hacks 6 | . 6 . Successful 4 | . 4 . Failed 2 | . 2 . Catastrophic 1 | . 1 . Database Lockouts . | . . . Manual 5 | . 5 . Terminals 6 | . 6 . Fabricators . | . . . Repair Stations . | . . . Recycling Units . | . . . Scanalyzers . | . . . Garrison Access . | . . . Terminal Hacks 4 | . 4 . Part Schematic 1 | . 1 . Branch Access Points 1 | . 1 . Terminal Index 1 | . 1 . Zone Layout 1 | . 1 . Fabricator Hacks . | . . . Repair Station Hacks . | . . . Recycling Unit Hacks . | . . . Scanalyzer . | . . . Garrison Access Hacks . | . . . Unauthorized Hacks . | . . . Terminals . | . . . Fabricators . | . . . Repair Stations . | . . . Recycling Units . | . . . Scanalyzers . | . . . Garrison Access . | . . . Data Cores Recovered . | . . . Used . | . . . Hacking Detections 2 | . 2 . Full Trace Events 1 | . 1 . Feedback Events . | . . . Feedback Blocked . | . . . Robot Schematics Acquired . | . . . Robots Built . | . . . Authchips . | . . . Time . | . . . Total Robot Build Rating . | . . . Part Schematics Acquired 1 | . 1 . Parts Built . | . . . Authchips . | . . . Time . | . . . Total Part Build Rating . | . . . Parts Repaired . | . . . Time . | . . . Parts Recycled . | . . . Recycled Matter . | . . . Retrieved Matter . | . . . Retrieved Components . | . . . Parts Scanalyzed . | . . . Part Schematics Acquired . | . . . Parts Damaged . | . . . Bothacking | -11 -10 -10 ------------ Run | Yrd Mat Min Used RIF Installer . | . . . Robots Hacked . | . . . Non-combat . | . . . Combat . | . . . Robot Hacks Applied . | . . . Relay Couplers Released . | . . . Fabnet Peak Effective % . | . . . Robots Rewired . | . . . Allies Hacked . | . . . Hacks Repelled . | . . . Allies | -11 -10 -10 -------- Run | Yrd Mat Min Total Allies . | . . . Largest Group . | . . . Highest-Rated Group . | . . . Highest-Rated Ally . | . . . Total Orders . | . . . Ally Attacks . | . . . Total Damage . | . . . Kills . | . . . Allies Corrupted . | . . . Allies Melted . | . . . Intel | -11 -10 -10 ------- Run | Yrd Mat Min Robot Analysis Total . | . . . Derelict Logs Recovered . | . . . Drone Launches . | . . . Drone Recoveries . | . . . Exploration | -11 -10 -10 ------------- Run | Yrd Mat Min Turns Passed 603 | 179 302 122 Spaces Moved 319 | 91 182 46 Core 9 | 9 . . Treads 163 | 82 35 46 Legs 146 | . 146 . Wheels 1 | . 1 . Hover . | . . . Flight . | . . . Fastest Speed 50 | 50 100 160 Average Speed 138 | 149 127 161 Slowest Speed 240 | 160 160 240 Overloaded Moves . | . . . Propulsion Burnouts . | . . . Robots Hopped . | . . . Cave-ins Triggered . | . . . Exploration Rate (%) 17 | 5 32 15 Regions Visited 2 Branch Regions 1 Pre-discovered Areas . | . . . Known Exits Taken 1 | . 1 . Unknown Exits Taken 1 | 1 . . Scrap Searched . | . . . Spaces Dug 8 | . . 8 Terrain Destroyed 50 | 6 8 36 Melee . | . . . Projectile . | . . . AOE 50 | 6 8 36 Terrain Rammed . | . . . Walls Destroyed . | . . . Machines Disabled . | . . . Actions | -11 -10 -10 --------- Run | Yrd Mat Min Total 431 | 113 247 71 Wait 25 | . 24 1 Move 317 | 90 181 46 Hop . | . . . Pick Up 20 | 8 11 1 Fast Attach 11 | 6 5 . Attach 9 | . 2 7 Detach 2 | . 2 . Swap 9 | . 6 3 Drop 12 | . 12 . Fire 26 | 9 4 13 Melee . | . . . Ram . | . . . Kick . | . . . Crush . | . . . Escape Stasis . | . . . Rewire . | . . . Trap . | . . . Miscellaneous . | . . . Route ------- -11/Scrapyard -10/Materials -10/Mines History --------- Turn | Location | Event 17 | -11/Scrapyard | Discovered new exit (range 16) 180 | -11/Scrapyard | Entered Materials 329 | -10/Materials | Build established: Mutant 383 | -10/Materials | Discovered new exit (range 12) 386 | -10/Materials | Identified exit to Mines 482 | -10/Materials | Entered Mines 489 | -10/Mines | Received a Rocket Launcher from a helpful Derelict 538 | -10/Mines | Assembled infested the area 582 | -10/Mines | System corruption reached 10% 584 | -10/Mines | Core integrity fell below 50% 595 | -10/Mines | Core integrity fell below 20% 604 | -10/Mines | Destroyed by as-41333 with Assembled Rifle Last Messages --------------- 00573_ as-26070 destroyed. 00576_ Lgt. Treads destroyed. 00577_ as-84939 destroyed. 00579_ Grenade Launcher destroyed. 00579_ System corrupted by crushing effect (+4). 00581_ Lgt. Treads destroyed. 00581_ System corrupted by crushing effect (+4). 00581_ Knocked back. 00582_ The unstable cave ceiling collapses. 00583_ Ion Engine destroyed. 00583_ System corrupted by crushing effect (+5). 00583_ as-03428 destroyed. 00583_ as-00482 destroyed. 00583_ as-92997 destroyed. 00583_ Rocket Launcher destroyed. 00587_ The unstable cave ceiling collapses. 00592_ as-10996 destroyed. 00595_ Beam Cannon destroyed. 00601_ as-49773 destroyed. 00602_ System corrupted: Matter fused (-5). Map ----- +----------------------------------------------------+ | ?????????????????????????????????????????????????? | | ?????????????????????????????????????????????????? | | ?????????????????????????????????????????????????? | | ?????????????????????????????????????????????????? | | ?????????????????????????????????????????????????? | | ?????????????????????????????????????????????????? | | ?????????????????????????????????????????????????? | | ???????????????????????????????? ????????????????? | | ???????????????????????????????? #???????????????? | | ???????????????????????????????? ##??????????????? | | ??????????????????????????????? ##?# ?????????? | | ???????????????????????????#### ## ?????????? | | ??????????????????????????? ????????? | | ??????????????????????????# ?????????? | | ?????????????????????????## ??????????? | | ????????????????????????## ???????????? | | ????????????????????????# ????????????? | | ????????????????????????# ?????????????? | | ????????????????????????# ??????????????? | | ????????????????????????# #???????????????? | | ???????????????????????## #???????????????? | | ???????????????????????# #???????????????? | | ???????????????????????# % ?????????????????? | | ???????????####????????# #%a #??????????????????? | | ??????????## ##???????## ##??????????????????? | | ??????????# ##????### @%% #???????????????????? | | ?????????## ##???# #??????????????????? | | ???????### ##### # ####??????????????????? | | ??????## ## #?????????????????????? | | ??????# ## #### ##????????????????????? | | ??????# ### #?## ##???????????????????? | | ??????## ## ##?# ### #???????????????????? | | ???????# ### #### ## #???????????????????? | | ??????# #?# #???????????????????? | | ?????# #?########## ##???????????????????? | | ?????# ##??????????## #????????????????????? | | ?????## ###????????????## #???????????????????? | | ??????###?????????????????# ??????????????????? | | ???????????????????????????# ????????????????? | | ????????????????????????????######???????????????? | | ?????????????????????????????????????????????????? | | ?????????????????????????????????????????????????? | | | | | | | | | | | | | | | | | +----------------------------------------------------+ Best States ------------- Heat Dissipation 25 Energy Generation 10 Energy Capacity 250 Matter Stores 300 Matter Capacity 400 Sight Range 16 Robot Scan Range 14 Terrain Scan Density 10 Evasion (%) 55 Recoil Reduction 2 Item Schematics ----------------- Hcp. Storage Unit | -10/Materials | Hacked Robot Schematics ------------------ None Fabricated ------------ Nothing Alien Tech Used ----------------- None Achievements -------------- Quick And Dirty Challenges ------------ None Game ------ Seed AnalysisTractorBlade Manual? 0 Play Time 00:08:54 Cumulative 28.8 hours Start 2024.04.20 @ 23:30:22 End 2024.04.20 @ 23:37:44 Sessions 1 Manual Loads 0 Difficulty Rogue Special Mode None Game No. 23 Rogue 23 Adventurer 0 Explorer 0 Win Type - Total 0 Types 0/0/0/0/0/0/0/0/0 Lore% 19 Gallery% 35 Achievement% 25 Wizard Run 0 Options --------- Layout 2 ASCII 0 Keyboard 0 Movement Numpad Keybinds 0 Fullscreen 2 Font 28/SmallcapsGlow Map View 59x48 Zoom Use 0% Tactical HUD 1 Map Filters NONE Filters NONE Steam 1 RUN: 26f045c1-5ae0-4e02-8bb2-a983d71e42ec